[Event "Balkan Youth Online-ch 2020"]
[Site "Online"]
[Date "2020.10.31"]
[Round "5.12"]
[White "Pehlivan, Mert"]
[Black "Magold, Filip"]
[Result "0-1"]
[ECO "C00"]
[WhiteElo "1653"]
[BlackElo "2043"]
[Annotator "NA"]
[PlyCount "88"]
[EventDate "2020.10.31"]
[EventType "swiss"]
[SourceTitle "playchess.com"]
[Source "ChessBase"]
[SourceQuality "1"]
[TimeControl "1500+5"]

1. e4 {[%emt 0:00:00]} c5 {[%emt 0:00:00]} 2. Nf3 {[%emt 0:00:00]} e6 {[%emt 0:00:00]} 3. d3 {[%emt 0:00:00]} d5 {[%emt 0:00:00]} 4. Nbd2 {[%emt 0:00:00]} Nf6 {[%emt 0:00:00]} 5. g3 {[%emt 0:00:00]} Nc6 {[%emt 0:00:00]} 6. Bg2 {[%emt 0:00:00]} Qc7 {[%emt 0:00:02]} 7. O-O {[%emt 0:00:00]} Be7 {[%emt 0:00:04]} 8. c3 {[%emt 0:00:12] C00: French: Unusual White 2nd moves.} b6 {[%emt 0:00:15]} 9. exd5 {[%emt 0:02:02]} exd5 {[%emt 0:00:02]} 10. Re1 {[%emt 0:00:16]} O-O {[%emt 0:00:04]} 11. Nf1 {[%emt 0:00:03]} Bg4 {[%emt 0:01:42] [#]} 12. h3 $146 {[%emt 0:00:57]} ({Predecessor:} 12. Bf4 Bd6 13. Bxd6 Qxd6 14. Qc2 h6 15. Ne3 Be6 16. Rad1 Rac8 17. d4 Rfd8 18. dxc5 Qxc5 {1-0 (73) Schmid,N (1956)-Poun,K (1941) Winterthur 2012}) 12... Bh5 {[%emt 0:00:22]} 13. g4 {[%emt 0:01:17]} Bg6 {[%emt 0:00:01]} 14. Ng3 {[%emt 0:00:12]} Bd6 {[%emt 0:00:14]} 15. Nf5 {[%emt 0:04:52]} (15. Nf1 $11) 15... Bxf5 $1 {[%emt 0:00:00]} 16. gxf5 {[%emt 0:00:01]} Rae8 {[%emt 0:00:26]} 17. Bg5 {[%emt 0:01:37]} Nd7 {[%emt 0:00:17]} 18. f6 {[%emt 0:03:35]} Rxe1+ {[%emt 0:04:56]} 19. Nxe1 {[%emt 0:00:49]} g6 {[%emt 0:04:26]} ({Not} 19... gxf6 $2 20. Bh6 $18) 20. Bxd5 {[%emt 0:01:10]} Be5 {[%emt 0:00:08]} 21. Qf3 {[%emt 0:01:03]} Nd8 {[%emt 0:00:47]} 22. h4 {[%emt 0:03:14]} Qd6 {[%emt 0:00:07]} 23. Ng2 {[%emt 0:02:40]} Nxf6 {[%emt 0:00:01]} 24. Bxf6 {[%emt 0:00:22]} Bxf6 {[%emt 0:00:00]} 25. Re1 {[%emt 0:00:20]} Kg7 {[%emt 0:00:06]} 26. Qe4 {[%emt 0:01:15]} b5 {[%emt 0:00:44]} 27. Re3 {[%emt 0:00:33]} b4 {[%emt 0:00:08]} 28. Rg3 {[%emt 0:00:29]} (28. cxb4 $11 {remains equal.} cxb4 29. b3) 28... bxc3 {[%emt 0:00:12]} 29. bxc3 {[%emt 0:00:04]} Be5 {[%emt 0:00:19]} 30. f4 {[%emt 0:00:10]} Bxc3 {[%emt 0:00:00]} 31. h5 {[%emt 0:00:00]} Qf6 {[%emt 0:00:05]} 32. hxg6 {[%emt 0:00:07]} fxg6 {[%emt 0:00:07]} 33. Kh2 {[%emt 0:00:07]} Nf7 {[%emt 0:00:07]} 34. f5 {[%emt 0:00:04]} Nd6 {[%emt 0:00:00]} 35. Qe6 {[%emt 0:00:01]} Be5 {[%emt 0:00:00]} 36. Qd7+ {[%emt 0:00:05]} Nf7 {[%emt 0:00:00]} 37. fxg6 {[%emt 0:00:08]} Bxg3+ {[%emt 0:00:00]} 38. Kxg3 {[%emt 0:00:00]} Qxg6+ {[%emt 0:00:00]} 39. Kh2 {[%emt 0:00:04]} Qd6+ {[%emt 0:00:00]} 40. Qxd6 {[%emt 0:00:03]} Nxd6 {[%emt 0:00:00]} 41. Kg3 {[%emt 0:00:03]} Rf5 {[%emt 0:00:00]} 42. Nf4 {[%emt 0:00:01]} Kf6 {[%emt 0:00:15]} 43. Kg4 $19 {[%emt 0:00:23]} Ke5 {[%emt 0:00:01]} 44. Bc6 {[%emt 0:00:11]} Rxf4+ {[%emt 0:00:00]} 0-1

[Event "Balkan Youth Online-ch 2020"]
[Site "Online"]
[Date "2020.10.31"]
[Round "5.13"]
[White "Lavrencic, Matic"]
[Black "Papaioannou, Dimitrios"]
[Result "1-0"]
[ECO "C81"]
[WhiteElo "2018"]
[BlackElo "1924"]
[Annotator "ChessBase"]
[PlyCount "119"]
[EventDate "2020.10.31"]
[EventType "swiss"]
[SourceTitle "playchess.com"]
[Source "ChessBase"]
[SourceQuality "1"]
[TimeControl "1500+5"]

1. e4 {[%emt 0:00:00]} e5 {[%emt 0:00:00]} 2. Nf3 {[%emt 0:00:00]} Nc6 {[%emt 0:00:00]} 3. Bb5 {[%emt 0:00:00]} a6 {[%emt 0:00:00]} 4. Ba4 {[%emt 0:00:00]} Nf6 {[%emt 0:00:00]} 5. O-O {[%emt 0:00:00]} Nxe4 {[%emt 0:00:00]} 6. d4 {[%emt 0:00:00]} b5 {[%emt 0:00:00]} 7. Bb3 {[%emt 0:00:00]} d5 {[%emt 0:00:00]} 8. dxe5 {[%emt 0:00:00]} Be6 {[%emt 0:00:00]} 9. Qe2 {[%emt 0:00:11]} Nc5 {[%emt 0:00:00]} 10. Rd1 {[%emt 0:00:00]} Nxb3 {[%emt 0:00:00]} 11. cxb3 {[%emt 0:00:08]} Be7 {[%emt 0:00:19]} 12. Be3 {[%emt 0:00:06]} O-O {[%emt 0:00:40]} 13. Nc3 {[%emt 0:00:08]} Qd7 {[%emt 0:04:33]} 14. Rac1 {[%emt 0:00:03]} Nd8 {[%emt 0:00:03]} 15. Ne4 {[%emt 0:00:40]} c6 {[%emt 0:01:37]} 16. Nc5 {[%emt 0:00:07]} Qe8 {[%emt 0:00:10]} 17. Nd4 {[%emt 0:01:28]} Bxc5 {[%emt 0:01:25]} 18. Rxc5 {[%emt 0:00:00]} Bd7 {[%emt 0:00:00]} 19. Nf3 {[%emt 0:01:15]} f6 {[%emt 0:02:11]} 20. exf6 {[%emt 0:00:22]} Rxf6 {[%emt 0:00:31]} 21. Qd3 {[%emt 0:01:06]} Qh5 {[%emt 0:01:57]} 22. Bg5 {[%emt 0:01:01]} Rxf3 {[%emt 0:01:12]} 23. Qxf3 {[%emt 0:00:41]} Qxg5 {[%emt 0:01:06]} 24. h3 {[%emt 0:02:17]} Ne6 {[%emt 0:01:13]} 25. Rc2 {[%emt 0:01:18]} Rf8 {[%emt 0:00:28]} 26. Qe3 {[%emt 0:01:19]} Nf4 {[%emt 0:01:28]} 27. Qg3 {[%emt 0:00:10]} Qh5 {[%emt 0:02:14]} 28. Re1 {[%emt 0:00:03]} Rf6 {[%emt 0:02:27]} 29. Kh2 {[%emt 0:01:00]} Kf7 {[%emt 0:01:24]} 30. Qe3 {[%emt 0:02:42]} Qf5 {[%emt 0:01:34]} 31. Rc3 {[%emt 0:00:47]} Re6 {[%emt 0:00:16]} 32. Qd2 {[%emt 0:00:17]} d4 {[%emt 0:00:17]} 33. Rf3 {[%emt 0:00:01]} g5 {[%emt 0:00:06]} 34. Rxe6 {[%emt 0:00:15]} Qxe6 {[%emt 0:00:00]} 35. Qxd4 {[%emt 0:00:09]} Kg8 {[%emt 0:00:00]} 36. Rg3 {[%emt 0:00:11]} h6 {[%emt 0:00:01]} 37. Qxf4 {[%emt 0:00:00]} Kh7 {[%emt 0:00:10]} 38. Qe3 {[%emt 0:00:05]} Qd6 {[%emt 0:00:02]} 39. Qd3+ {[%emt 0:00:00]} Qxd3 {[%emt 0:00:00]} 40. Rxd3 {[%emt 0:00:00]} Be6 {[%emt 0:00:00]} 41. Rd6 {[%emt 0:00:00]} Bd5 {[%emt 0:00:00]} 42. f3 {[%emt 0:00:00]} a5 {[%emt 0:00:00]} 43. Kg1 {[%emt 0:00:00]} a4 {[%emt 0:00:00]} 44. bxa4 {[%emt 0:00:00]} bxa4 {[%emt 0:00:00]} 45. a3 {[%emt 0:00:00]} h5 {[%emt 0:00:00]} 46. Kf2 {[%emt 0:00:00]} Kg7 {[%emt 0:00:00]} 47. Ke3 {[%emt 0:00:00]} g4 {[%emt 0:00:00]} 48. hxg4 {[%emt 0:00:00]} hxg4 {[%emt 0:00:00]} 49. Rxd5 {[%emt 0:00:00]} cxd5 {[%emt 0:00:00]} 50. fxg4 {[%emt 0:00:00]} Kf6 {[%emt 0:00:00]} 51. Kd4 {[%emt 0:00:00]} Kg5 {[%emt 0:00:00]} 52. Kxd5 {[%emt 0:00:00]} Kxg4 {[%emt 0:00:00]} 53. Kc4 {[%emt 0:00:00]} Kg3 {[%emt 0:00:00]} 54. Kb4 {[%emt 0:00:00]} Kxg2 {[%emt 0:00:00]} 55. Kxa4 {[%emt 0:00:00]} Kf3 {[%emt 0:00:00]} 56. Kb5 {[%emt 0:00:00]} Ke4 {[%emt 0:00:00]} 57. a4 {[%emt 0:00:00]} Kd5 {[%emt 0:00:00]} 58. a5 {[%emt 0:00:00]} Kd6 {[%emt 0:00:00]} 59. Kb6 {[%emt 0:00:00]} Kd7 {[%emt 0:00:00]} 60. Kb7 {[%emt 0:00:00]} 1-0

[Event "Balkan Youth Online-ch 2020"]
[Site "Online"]
[Date "2020.10.31"]
[Round "5.14"]
[White "Ipek, Egehan"]
[Black "Tsarsitalidis, Christos"]
[Result "1-0"]
[ECO "A09"]
[WhiteElo "1723"]
[BlackElo "1786"]
[Annotator "NA"]
[PlyCount "59"]
[EventDate "2020.10.31"]
[EventType "swiss"]
[SourceTitle "playchess.com"]
[Source "ChessBase"]
[SourceQuality "1"]
[TimeControl "1500+5"]

1. Nf3 {[%emt 0:00:00]} d5 {[%emt 0:00:00]} 2. c4 {[%emt 0:00:00]} dxc4 {[%emt 0:00:00]} 3. Qa4+ {[%emt 0:00:23]} Nd7 {[%emt 0:00:00]} 4. g3 {[%emt 0:00:20]} a6 {[%emt 0:00:04]} 5. Nc3 {[%emt 0:03:21]} Rb8 {[%emt 0:01:43]} 6. Qxc4 {[%emt 0:00:42]} b5 {[%emt 0:00:04]} 7. Qf4 {[%emt 0:01:38]} Ngf6 {[%emt 0:00:29]} 8. Bg2 {[%emt 0:00:12]} Bb7 {[%emt 0:00:12]} 9. O-O {[%emt 0:00:28]} e6 {[%emt 0:00:12]} 10. d4 {[%emt 0:00:32]} Bd6 {[%emt 0:00:21]} 11. Qd2 {[%emt 0:00:07]} b4 {[%emt 0:00:41]} 12. Na4 {[%emt 0:00:21]} Ne4 {[%emt 0:02:57]} 13. Qc2 {[%emt 0:00:30]} f5 {[%emt 0:04:37]} 14. Nd2 {[%emt 0:02:10]} Ndf6 {[%emt 0:01:37]} 15. Nxe4 {[%emt 0:01:07]} Nxe4 {[%emt 0:00:00]} 16. Nc5 {[%emt 0:00:09]} Bxc5 {[%emt 0:00:46]} 17. dxc5 {[%emt 0:00:00]} Bd5 {[%emt 0:01:23]} 18. Rd1 {[%emt 0:04:28]} Qe7 {[%emt 0:00:16]} 19. b3 {[%emt 0:04:16]} Nc3 {[%emt 0:07:06]} 20. Rd3 {[%emt 0:01:14]} Bxg2 {[%emt 0:03:36]} 21. Kxg2 {[%emt 0:00:18]} Qxc5 {[%emt 0:00:24]} 22. Bb2 {[%emt 0:02:33]} Ne4 {[%emt 0:00:11]} 23. Qxc5 {[%emt 0:00:07]} Nxc5 {[%emt 0:00:00]} 24. Re3 {[%emt 0:00:07]} Kf7 {[%emt 0:00:06]} 25. Rc1 {[%emt 0:00:06]} Nb7 {[%emt 0:00:07]} 26. Rxc7+ {[%emt 0:00:00]} Ke8 {[%emt 0:00:05]} 27. Bxg7 {[%emt 0:01:18]} Rg8 {[%emt 0:00:05]} 28. Rxe6+ {[%emt 0:00:12]} Kd8 {[%emt 0:00:00]} 29. Rf7 {[%emt 0:00:05]} Nc5 {[%emt 0:00:10]} 30. Bf6+ {[%emt 0:00:00]} 1-0

[Event "Balkan Youth Online-ch 2020"]
[Site "Online"]
[Date "2020.10.31"]
[Round "5.15"]
[White "Poupalos, Nikolaos"]
[Black "Mogirzan, Matei-Valeriu"]
[Result "0-1"]
[ECO "B13"]
[WhiteElo "1887"]
[BlackElo "1813"]
[Annotator "NA"]
[PlyCount "86"]
[EventDate "2020.10.31"]
[EventType "swiss"]
[SourceTitle "playchess.com"]
[Source "ChessBase"]
[SourceQuality "1"]
[TimeControl "1500+5"]

1. e4 {[%emt 0:00:00]} c6 {[%emt 0:00:13]} 2. d4 {[%emt 0:00:00]} d5 {[%emt 0:00:00]} 3. exd5 {[%emt 0:00:02]} cxd5 {[%emt 0:00:00]} 4. Bd3 {[%emt 0:00:00]} Nc6 {[%emt 0:00:02]} 5. c3 {[%emt 0:00:00]} Nf6 {[%emt 0:00:17]} 6. h3 {[%emt 0:00:00]} e5 {[%emt 0:00:22]} 7. dxe5 {[%emt 0:00:29]} Nxe5 {[%emt 0:00:41]} 8. Nf3 {[%emt 0:00:14]} Nxd3+ {[%emt 0:01:01] B13: Caro-Kann: Exchange Variation and Panov-Botvinnik Attack.} 9. Qxd3 {[%emt 0:00:00]} Bd6 {[%emt 0:00:02]} 10. O-O {[%emt 0:00:25]} O-O {[%emt 0:01:49]} 11. Nbd2 {[%emt 0:05:40] [#]} Bd7 $146 {[%emt 0:01:29]} ({Predecessor:} 11... Re8 12. Rd1 h6 13. Nf1 Bc7 14. Be3 Be6 15. Nd4 Bd7 16. Nb3 Qc8 17. Nd4 a6 {0-1 (39) Zapata,A (2424)-Wang,K (2371) Charlotte 2017}) 12. Nd4 {[%emt 0:00:38]} Rc8 {[%emt 0:01:40]} 13. N2f3 {[%emt 0:02:26]} Ne4 {[%emt 0:02:57]} 14. Be3 {[%emt 0:02:44]} Qf6 {[%emt 0:02:34]} 15. Qe2 {[%emt 0:04:04]} Bb8 {[%emt 0:05:17]} 16. Nd2 {[%emt 0:01:31]} Rfe8 {[%emt 0:00:50]} 17. Nxe4 {[%emt 0:02:32]} Rxe4 {[%emt 0:00:02]} 18. Nf3 {[%emt 0:00:10]} Rc6 {[%emt 0:02:39]} 19. Qd3 {[%emt 0:00:31]} (19. Qb5 $11) 19... Bxh3 {[%emt 0:02:15]} 20. Ng5 {[%emt 0:02:07]} Qe5 {[%emt 0:00:58]} 21. f4 {[%emt 0:00:00]} Qe7 {[%emt 0:01:18]} 22. Nxe4 {[%emt 0:00:26]} Bf5 {[%emt 0:00:12]} 23. Qxd5 {[%emt 0:00:49]} Bxe4 {[%emt 0:00:00]} 24. Qg5 {[%emt 0:00:23]} f6 {[%emt 0:00:04]} 25. Qg3 {[%emt 0:00:24]} ({White should play} 25. Qh4 $16) 25... Re6 {[%emt 0:00:06]} 26. Bd4 {[%emt 0:00:13]} f5 {[%emt 0:00:07]} 27. Qg5 {[%emt 0:00:24]} Qd7 {[%emt 0:00:01]} 28. Rad1 $2 {[%emt 0:00:39]} (28. Rf2 $11) 28... Rg6 {[%emt 0:00:01]} 29. Qxg6 {[%emt 0:00:15]} hxg6 {[%emt 0:00:00]} 30. Be5 {[%emt 0:00:00]} Qe8 {[%emt 0:00:14]} 31. Bxb8 {[%emt 0:00:17]} Qxb8 {[%emt 0:00:00]} 32. Rd4 {[%emt 0:00:00]} Qc7 {[%emt 0:00:06]} 33. g3 {[%emt 0:00:00]} Qe7 {[%emt 0:00:03]} 34. Kf2 {[%emt 0:00:05]} g5 {[%emt 0:00:03]} 35. Rfd1 {[%emt 0:00:08]} gxf4 {[%emt 0:00:02]} 36. Rd8+ {[%emt 0:00:00]} Kh7 {[%emt 0:00:00]} 37. gxf4 {[%emt 0:00:03]} Qh4+ {[%emt 0:00:00]} 38. Ke3 {[%emt 0:00:00]} Qg3+ {[%emt 0:00:04]} 39. Kd4 {[%emt 0:00:00]} Qxf4 $19 {[%emt 0:00:02]} 40. Kc5 {[%emt 0:00:02]} Qc7+ {[%emt 0:00:08]} 41. Kb4 {[%emt 0:00:00]} a5+ {[%emt 0:00:02]} 42. Kb3 {[%emt 0:00:01]} b5 {[%emt 0:00:02]} 43. a3 {[%emt 0:00:02]} Qc4# {[%emt 0:00:00]} 0-1

[Event "Balkan Youth Online-ch 2020"]
[Site "Online"]
[Date "2020.10.31"]
[Round "5.16"]
[White "Cimperman, Teo"]
[Black "Milanovic, Marko"]
[Result "0-1"]
[ECO "C54"]
[WhiteElo "1488"]
[BlackElo "2066"]
[Annotator "ChessBase"]
[PlyCount "70"]
[EventDate "2020.10.31"]
[EventType "swiss"]
[SourceTitle "playchess.com"]
[Source "ChessBase"]
[SourceQuality "1"]
[TimeControl "1500+5"]

1. e4 {[%emt 0:00:00]} e5 {[%emt 0:00:00]} 2. Nf3 {[%emt 0:00:00]} Nc6 {[%emt 0:00:00]} 3. Bc4 {[%emt 0:00:00]} Bc5 {[%emt 0:00:02]} 4. c3 {[%emt 0:00:00]} Nf6 {[%emt 0:00:09]} 5. d3 {[%emt 0:00:00]} O-O {[%emt 0:00:00]} 6. O-O {[%emt 0:00:00]} d5 {[%emt 0:00:00]} 7. exd5 {[%emt 0:00:00]} Nxd5 {[%emt 0:00:00]} 8. d4 {[%emt 0:00:00]} exd4 {[%emt 0:00:00]} 9. cxd4 {[%emt 0:00:00]} Bb6 {[%emt 0:00:00]} 10. Nc3 {[%emt 0:00:00]} Be6 {[%emt 0:00:17]} 11. Bb3 {[%emt 0:00:12]} Qd7 {[%emt 0:00:50]} 12. Re1 {[%emt 0:00:08]} Rad8 {[%emt 0:00:36]} 13. Be3 {[%emt 0:00:04]} Rfe8 {[%emt 0:01:01]} 14. h3 {[%emt 0:00:50]} Na5 {[%emt 0:02:50]} 15. Ne5 {[%emt 0:01:17]} Qd6 {[%emt 0:01:03]} 16. Ne4 {[%emt 0:00:55]} Qf8 {[%emt 0:00:31]} 17. Rc1 {[%emt 0:00:32]} Nxe3 {[%emt 0:00:12]} 18. fxe3 {[%emt 0:00:05]} Bxb3 {[%emt 0:00:00]} 19. axb3 {[%emt 0:06:46]} Rxe5 {[%emt 0:00:49]} 20. Qg4 {[%emt 0:00:28]} f5 {[%emt 0:00:34]} 21. dxe5 {[%emt 0:01:08]} fxg4 {[%emt 0:00:00]} 22. Rcd1 {[%emt 0:00:26]} Bxe3+ {[%emt 0:00:02]} 23. Kh1 {[%emt 0:00:00]} Rxd1 {[%emt 0:00:00]} 24. Rxd1 {[%emt 0:00:00]} gxh3 {[%emt 0:00:00]} 25. e6 {[%emt 0:00:13]} hxg2+ {[%emt 0:00:00]} 26. Kxg2 {[%emt 0:00:01]} Nc6 {[%emt 0:00:00]} 27. b4 {[%emt 0:00:06]} Qf5 {[%emt 0:00:00]} 28. e7 {[%emt 0:00:05]} Qxe4+ {[%emt 0:00:03]} 29. Kh2 {[%emt 0:00:00]} Qh4+ {[%emt 0:00:02]} 30. Kg2 {[%emt 0:00:00]} Qg4+ {[%emt 0:00:00]} 31. Kh2 {[%emt 0:00:00]} Bf4+ {[%emt 0:00:00]} 32. Kh1 {[%emt 0:00:00]} Qxd1+ {[%emt 0:00:00]} 33. Kg2 {[%emt 0:00:00]} Qe2+ {[%emt 0:00:00]} 34. Kh3 {[%emt 0:00:00]} Qf3+ {[%emt 0:00:00]} 35. Kh4 {[%emt 0:00:00]} g5# {[%emt 0:00:00]} 0-1

[Event "Balkan Youth Online-ch 2020"]
[Site "Online"]
[Date "2020.10.31"]
[Round "5.17"]
[White "Nikolovski, Kiril"]
[Black "Boeru, Dragos-Matei"]
[Result "0-1"]
[ECO "B23"]
[WhiteElo "1282"]
[BlackElo "1756"]
[Annotator "NA"]
[PlyCount "64"]
[EventDate "2020.10.31"]
[EventType "swiss"]
[SourceTitle "playchess.com"]
[Source "ChessBase"]
[SourceQuality "1"]
[TimeControl "1500+5"]

1. e4 {[%emt 0:00:00]} c5 {[%emt 0:00:00]} 2. Nc3 {[%emt 0:00:00]} a6 {[%emt 0:00:00]} 3. f4 {[%emt 0:00:00]} e6 {[%emt 0:00:00]} 4. Nf3 {[%emt 0:00:00]} b5 {[%emt 0:00:00]} 5. d3 {[%emt 0:00:00]} Bb7 {[%emt 0:00:00]} 6. g3 {[%emt 0:00:00]} Nc6 {[%emt 0:00:00]} 7. Bg2 {[%emt 0:00:00]} Nf6 {[%emt 0:01:14]} 8. O-O {[%emt 0:00:00]} Be7 {[%emt 0:00:00]} 9. Ne2 {[%emt 0:00:08]} O-O {[%emt 0:00:01]} 10. h3 {[%emt 0:00:00]} d5 {[%emt 0:00:40]} 11. e5 {[%emt 0:00:08]} Nd7 {[%emt 0:00:07]} 12. c3 {[%emt 0:01:17]} Nb6 {[%emt 0:00:57]} 13. b3 {[%emt 0:01:09]} Rb8 {[%emt 0:01:19]} 14. d4 {[%emt 0:02:22]} c4 {[%emt 0:01:47]} 15. b4 {[%emt 0:00:47]} Na4 {[%emt 0:01:17]} 16. Qc2 {[%emt 0:01:19]} a5 {[%emt 0:02:33]} 17. a3 {[%emt 0:00:04]} Ra8 {[%emt 0:00:41]} 18. Bd2 {[%emt 0:00:24]} Qd7 {[%emt 0:01:02]} 19. Kh1 {[%emt 0:01:25]} Ra7 {[%emt 0:00:31]} 20. Rfb1 {[%emt 0:00:19]} Rfa8 {[%emt 0:01:14]} 21. Qc1 {[%emt 0:00:09]} Nb6 {[%emt 0:01:41]} 22. Ne1 {[%emt 0:01:28]} Bc8 {[%emt 0:02:17]} 23. Nc2 {[%emt 0:01:38]} Ra6 {[%emt 0:01:26]} 24. Kh2 {[%emt 0:02:09]} Qa7 {[%emt 0:00:56]} 25. Be3 {[%emt 0:00:16]} Bd7 {[%emt 0:00:15]} 26. Bf3 {[%emt 0:01:11]} Be8 {[%emt 0:00:38]} 27. Kg2 {[%emt 0:00:20]} f6 {[%emt 0:00:18]} 28. Qg1 {[%emt 0:00:19]} Bg6 {[%emt 0:00:07]} 29. Qd1 {[%emt 0:00:48]} Bxc2 {[%emt 0:00:03]} 30. Qxc2 {[%emt 0:00:00]} axb4 {[%emt 0:00:00]} 31. cxb4 {[%emt 0:00:00]} Rxa3 {[%emt 0:00:00]} 32. Bc1 {[%emt 0:00:03]} Rxa1 {[%emt 0:00:00]} 0-1

[Event "Balkan Youth Online-ch 2020"]
[Site "Online"]
[Date "2020.10.31"]
[Round "5.18"]
[White "Ramaj, Ergit"]
[Black "Ivanov, Svetlen"]
[Result "1-0"]
[ECO "E18"]
[WhiteElo "1444"]
[BlackElo "1781"]
[Annotator "NA"]
[PlyCount "25"]
[EventDate "2020.10.31"]
[EventType "swiss"]
[SourceTitle "playchess.com"]
[Source "ChessBase"]
[SourceQuality "1"]
[TimeControl "1500+5"]

1. Nf3 {[%emt 0:00:00]} Nf6 {[%emt 0:02:30]} 2. d4 {[%emt 0:00:01]} e6 {[%emt 0:00:00]} 3. c4 {[%emt 0:00:13]} b6 {[%emt 0:00:00]} 4. g3 {[%emt 0:00:11]} Bb7 {[%emt 0:00:00]} 5. Bg2 {[%emt 0:00:00]} c5 {[%emt 0:00:00]} 6. O-O {[%emt 0:00:06]} Be7 {[%emt 0:00:00]} 7. Nc3 {[%emt 0:00:03]} O-O {[%emt 0:00:00]} 8. d5 {[%emt 0:00:16]} d6 {[%emt 0:00:12]} 9. dxe6 {[%emt 0:02:19]} fxe6 {[%emt 0:00:07]} 10. Bh3 {[%emt 0:00:06]} e5 {[%emt 0:00:51]} 11. Ng5 {[%emt 0:00:33]} Bc8 {[%emt 0:02:32]} 12. Bg2 {[%emt 0:02:24]} h6 {[%emt 0:01:18]} 13. Nge4 {[%emt 0:02:05]} 1-0

[Event "Balkan Youth Online-ch 2020"]
[Site "Online"]
[Date "2020.10.31"]
[Round "5.20"]
[White "Kalin, Andrei"]
[Black "Cvetkovski, Gjorgji"]
[Result "1/2-1/2"]
[ECO "C56"]
[WhiteElo "1426"]
[BlackElo "1332"]
[Annotator "NA"]
[PlyCount "99"]
[EventDate "2020.10.31"]
[EventType "swiss"]
[SourceTitle "playchess.com"]
[Source "ChessBase"]
[SourceQuality "1"]
[TimeControl "1500+5"]

1. e4 {[%emt 0:00:00]} e5 {[%emt 0:00:08]} 2. Nf3 {[%emt 0:00:00]} Nc6 {[%emt 0:00:05]} 3. d4 {[%emt 0:00:00]} exd4 {[%emt 0:00:00]} 4. Bc4 {[%emt 0:00:00]} Nf6 {[%emt 0:00:00]} 5. e5 {[%emt 0:00:00]} d5 {[%emt 0:00:00]} 6. Bb5 {[%emt 0:00:00]} Ne4 {[%emt 0:00:00]} 7. Nxd4 {[%emt 0:00:00]} Bd7 {[%emt 0:00:00]} 8. Bxc6 {[%emt 0:00:00]} bxc6 {[%emt 0:00:00]} 9. O-O {[%emt 0:00:00]} Bc5 {[%emt 0:00:00]} 10. f3 {[%emt 0:00:00]} Ng5 {[%emt 0:00:00]} 11. Be3 {[%emt 0:00:00]} Bb6 {[%emt 0:00:00]} 12. f4 {[%emt 0:00:08]} Ne4 {[%emt 0:00:00]} 13. Nc3 {[%emt 0:00:27]} Nxc3 {[%emt 0:00:05]} 14. bxc3 {[%emt 0:00:00]} c5 {[%emt 0:04:25]} 15. Nb3 {[%emt 0:04:21]} c4 {[%emt 0:00:34]} 16. Nd4 {[%emt 0:00:04]} c5 {[%emt 0:00:06]} 17. Nf3 {[%emt 0:00:02]} Bc6 {[%emt 0:00:00]} 18. Bf2 {[%emt 0:01:24]} O-O {[%emt 0:02:41]} 19. Re1 {[%emt 0:02:02]} Re8 {[%emt 0:00:36]} 20. Qe2 {[%emt 0:01:35]} Qc7 {[%emt 0:02:56]} 21. Rad1 {[%emt 0:01:23]} Rad8 {[%emt 0:00:00]} 22. Nh4 {[%emt 0:02:59]} Qc8 {[%emt 0:05:00]} 23. f5 {[%emt 0:05:02]} d4 {[%emt 0:01:51]} 24. cxd4 {[%emt 0:02:07]} cxd4 {[%emt 0:00:10]} 25. Qxc4 {[%emt 0:01:13]} Bd5 {[%emt 0:00:05]} 26. Qxc8 {[%emt 0:00:18]} Rxc8 {[%emt 0:00:00]} 27. Bxd4 {[%emt 0:00:13]} Bxd4+ {[%emt 0:00:34]} 28. Rxd4 {[%emt 0:00:02]} Bxa2 {[%emt 0:00:00]} 29. Ra4 {[%emt 0:00:11]} Rxc2 {[%emt 0:00:25]} 30. Rxa7 {[%emt 0:00:11]} Bd5 {[%emt 0:00:12]} 31. Rd7 {[%emt 0:02:06]} Bc6 {[%emt 0:00:38]} 32. Rc7 {[%emt 0:00:57]} h6 {[%emt 0:00:00]} 33. Nf3 {[%emt 0:00:44]} Be4 {[%emt 0:00:58]} 34. Rxc2 {[%emt 0:00:00]} Bxc2 {[%emt 0:00:00]} 35. f6 {[%emt 0:00:13]} gxf6 {[%emt 0:00:26]} 36. exf6 {[%emt 0:00:00]} Rxe1+ {[%emt 0:00:00]} 37. Nxe1 {[%emt 0:00:00]} Bb3 {[%emt 0:00:01]} 38. Kf2 {[%emt 0:00:12]} Kh7 {[%emt 0:00:00]} 39. Ke3 {[%emt 0:00:00]} Kg6 {[%emt 0:00:00]} 40. Kf4 {[%emt 0:00:00]} Kxf6 {[%emt 0:00:00]} 41. Nf3 {[%emt 0:00:00]} Bd5 {[%emt 0:00:00]} 42. g3 {[%emt 0:00:00]} Bxf3 {[%emt 0:00:10]} 43. Kxf3 {[%emt 0:00:00]} Kg5 {[%emt 0:00:00]} 44. h3 {[%emt 0:00:00]} f6 {[%emt 0:00:04]} 45. Ke4 {[%emt 0:00:00]} h5 {[%emt 0:01:22]} 46. Kf3 {[%emt 0:00:05]} h4 {[%emt 0:01:02]} 47. gxh4+ {[%emt 0:00:36]} Kxh4 {[%emt 0:00:00]} 48. Kf4 {[%emt 0:00:00]} Kxh3 {[%emt 0:00:03]} 49. Kf5 {[%emt 0:00:00]} Kh4 {[%emt 0:00:00]} 50. Kxf6 {[%emt 0:00:00]} 1/2-1/2